Cogmind - Beta 11.1 @@@ ROGUE MODE // 2022.09.01 @ 15:14:10 Player: ILikeMonsters1890 Result: Destroyed by G-67 Veteran with Field Laser Performance ------------- Evolutions (3) 1500 Regions Visited (12) 2400 Robots Destroyed (115) 575 Value Destroyed (3041) 3041 Prototype IDs (27) 540 Alien Tech Used (0) 0 Bonus (685) 685 TOTAL SCORE: 8741 Bonus ------- High Alert Combat Kills 56 Follower Combat Kills 85 Aligned with FarCom 300 Met Imprinter 300 Friendly Fire -56 Cogmind --------- Core Integrity 0/700 Matter 259/300 Energy 100/100 System Corruption 29% Temperature Cool (12) Movement Core (50) Location -6/Proximity Caves Parts ------- > --- POWER (3) -------- (None) > --- PROPULSION (3) --- (None) > --- UTILITY (5) ------ (None) > --- WEAPON (2) ------- (None) > --- INVENTORY (5) ---- Makeshift Power Source Light EM Pulse Cannon RU-N14's Throwing Claymores (10) RU-N14's Throwing Claymores (10) Peak State ------------ > --- POWER ------------ Ion Engine Ion Engine Light Nuclear Core > --- PROPULSION ------- Advanced Treads Advanced Treads Advanced Treads > --- UTILITY ---------- Medium Storage Unit Improved Sensor Array Improved Signal Interpreter Improved Medium Armor Plating Mobile Refinery Mk. CCLXVII > --- WEAPON ----------- Firepult > --- INVENTORY -------- Advanced Treads Advanced Treads Advanced Treads Transmission Jammer Makeshift Armor Plating Gatling Laser Minigun Improved Grenade Launcher RU-N14's Throwing Claymores RU-N14's Throwing Claymores [Rating: 55] Favorites ----------- Power Ion Engine Engine Ion Engine Power Core Light Nuclear Core Propulsion Advanced Treads Treads Advanced Treads Leg Makeshift Leg Wheel Compact Wheel Utility Medium Storage Unit Device Improved Heat Sink Storage Medium Storage Unit Processor Improved Signal Interpreter Protection Improved Medium Armor Plating Weapon Firepult Energy Gun Particle Gun Energy Cannon Firepult Ballistic Gun Makeshift Shrapnel Gun Ballistic Cannon Battle Cannon Launcher Improved Grenade Launcher Special Weapon RU-N14's Throwing Claymores Piercing Weapon Makeshift Spear Build | -11 -10 -10 -9 -9 -9 -8 -8 -7 -7 -7 -7 -6 ------- Run | Scr Mat Min Mat Min Exi Min Mat Fac Low Low Zio Pro Slots Evolved 6 | . . . 2 . . . 2 2 . . . . Power 2 | . . . . . . . . 2 . . . . Propulsion 1 | . . . . . . . 1 . . . . . Utility 3 | . . . 2 . . . 1 . . . . . Weapon . | . . . . . . . . . . . . . Parts Attached 90 | 7 2 . 6 1 . 9 10 2 4 5 43 1 Power 20 | 1 1 . 1 . . 1 2 2 1 1 10 . Engine 16 | 1 1 . 1 . . 1 2 2 . . 8 . Core 4 | . . . . . . . . . 1 1 2 . Reactor . | . . . . . . . . . . . . . Propulsion 24 | 2 . . . . . 3 4 . 1 . 14 . Treads 7 | . . . . . . . 3 . 1 . 3 . Leg 11 | . . . . . . . . . . . 11 . Wheel 6 | 2 . . . . . 3 1 . . . . . Hover . | . . . . . . . . . . . . . Flight . | . . . . . . . . . . . . . Utility 22 | 2 . . 3 . . 2 4 . 2 4 5 . Device 13 | 1 . . 1 . . 2 3 . . 3 3 . Storage 3 | 1 . . 1 . . . . . . 1 . . Processor 2 | . . . 1 . . . 1 . . . . . Hackware . | . . . . . . . . . . . . . Protection 4 | . . . . . . . . . 2 . 2 . Artifact . | . . . . . . . . . . . . . Weapon 24 | 2 1 . 2 1 . 3 . . . . 14 1 Energy Gun 6 | . 1 . 2 1 . 1 . . . . 1 . Energy Cannon 5 | . . . . . . 2 . . . . 2 1 Ballistic Gun 5 | 2 . . . . . . . . . . 3 . Ballistic Cannon 1 | . . . . . . . . . . . 1 . Launcher 1 | . . . . . . . . . . . 1 . Special Weapon 5 | . . . . . . . . . . . 5 . Impact Weapon . | . . . . . . . . . . . . . Slashing Weapon . | . . . . . . . . . . . . . Piercing Weapon 1 | . . . . . . . . . . . 1 . Special Melee Weapon . | . . . . . . . . . . . . . Unidentified Prototypes 2 | . . . . . . . . . . . 2 . Parts Lost 52 | . 1 . 1 1 . 5 4 . 1 3 35 1 Power 12 | . . . . . . 1 1 . . 1 9 . Propulsion 16 | . . . . . . 2 2 . . . 11 1 Utility 13 | . . . . . . 1 1 . 1 2 8 . Weapon 11 | . 1 . 1 1 . 1 . . . . 7 . Highest Loss Streak 15 | . 1 . 1 1 . 4 3 . 1 2 15 1 To Critical Strikes 1 | . . . . . . . . . . . 1 . Average Slot Usage (%) 90 | . 100 100 100 100 100 87 89 92 90 88 86 34 Engine 13 | . 14 14 11 11 11 10 8 23 18 15 14 6 Core 2 | . . . . . . . . . 3 6 4 . Treads 10 | . . . . . . . 13 23 23 23 14 . Leg 2 | . . . . . . . . . . . 7 12 Wheel 9 | . 28 28 22 22 22 21 13 . . . . . Device 16 | . 14 14 22 22 22 22 27 23 15 11 12 . Storage 8 | . 14 14 11 11 11 11 9 7 7 7 6 . Processor 6 | . . . 11 11 11 11 9 7 7 7 4 . Protection 3 | . . . . . . . . . 5 7 7 . Energy Gun 5 | . 5 14 21 22 22 1 . . . . . . Energy Cannon 4 | . . . . . . 9 9 7 7 7 3 6 Ballistic Gun 1 | . 22 14 . . . . . . . . 2 . Naked Turns 6 | . . . . . . . . . . . 1 5 Heaviest Build 70 | 12 15 15 25 25 25 41 43 49 70 57 56 16 Greatest Support 66 | 32 32 32 32 32 32 32 66 66 66 66 66 40 Greatest Overweight (x) 5 | . . . . . . 2 4 . 1 . 1 5 Average Overweight (x) . | . . . . . . 1 . . . . . . Largest Inventory Capacity 10 | 8 8 8 10 10 10 10 10 10 10 10 10 5 Average Capacity 9 | 7 8 8 9 10 10 10 10 10 10 10 9 5 Most Carried 10 | 8 8 8 9 10 10 10 10 9 10 10 10 4 Average Carried 8 | 5 7 7 7 8 9 6 9 8 8 9 7 1 Final Capacity 10 | 8 8 8 10 10 10 10 10 10 10 10 5 5 Final Carried 10 | 8 8 8 9 10 10 8 10 8 10 7 1 4 Class Distribution -------------------- 49% | Mutant 44% | Scavenger-Mutant 5% | Derelict-Mutant Dominant Class ---------------- Mutant | -10/Materials Mutant | -10/Mines Scavenger-Mutant | -9/Materials Scavenger-Mutant | -9/Mines Scavenger-Mutant | -9/Exiles Scavenger-Mutant | -8/Mines Mutant | -8/Materials Mutant | -7/Factory Mutant | -7/Lower Caves Mutant | -7/Lower Caves Mutant | -7/Zion Scavenger-Mutant | -6/Proximity Caves Resources | -11 -10 -10 -9 -9 -9 -8 -8 -7 -7 -7 -7 -6 ----------- Run | Scr Mat Min Mat Min Exi Min Mat Fac Low Low Zio Pro Matter Collected 1853 | 306 60 22 55 35 . 105 95 . 55 100 1020 . Remotely . | . . . . . . . . . . . . . Salvage Created 4201 | 129 163 119 323 52 . 395 1046 . 473 278 1223 . Parts 212 | 11 6 8 17 6 . 9 45 . 17 5 88 . Haulers Intercepted 1 | . . . . . . . 1 . . . . . Recyclers Shooed 2 | . . . . . . . 2 . . . . . Parts Field Recycled . | . . . . . . . . . . . . . Retrieved Matter . | . . . . . . . . . . . . . Parts Self-Destructed 20 | . . . . . . . . . 11 4 5 . Prevented . | . . . . . . . . . . . . . Kills | -11 -10 -10 -9 -9 -9 -8 -8 -7 -7 -7 -7 -6 ------- Run | Scr Mat Min Mat Min Exi Min Mat Fac Low Low Zio Pro Combat Hostiles Destroyed 75 | . 3 5 6 4 . 9 17 . 14 5 12 . Guns 23 | . 3 5 6 4 . 3 . . . . 2 . Cannons 7 | . . . . . . . 4 . 2 1 . . AOE 32 | . . . . . . 2 9 . 9 4 8 . Classes Destroyed 18 | 2 1 1 3 1 . 1 4 . . 1 4 . Worker 6 | . . . 1 . . 2 3 . . . . . Builder 5 | . . . 1 . . . 4 . . . . . Tunneler 5 | 3 . . . . . 1 1 . . . . . Hauler 1 | . . . . . . . 1 . . . . . Recycler 3 | 1 . . . . . . 2 . . . . . Watcher 1 | . . . . . . . 1 . . . . . Swarmer 27 | . . 3 . 3 . 3 8 . 10 . . . Grunt 24 | . 3 2 4 . . 5 5 . 2 3 . . Brawler 2 | . . . . . . . 1 . 1 . . . Duelist 1 | . . . . . . 1 . . . . . . Sentry 5 | . . . 2 . . . 1 . 1 1 . . Hunter 2 | . . . . . . . 2 . . . . . Programmer 1 | . . . . . . . . . . 1 . . Zionite 59 | . . . . . . . . . . . 59 . Tinkerer 3 | . . . . . . . . . . . 3 . Assembled 1 | . . . . 1 . . . . . . . . Thug 1 | . . . . . . . . . . . 1 . Savage 2 | . . . . . . . . . . . 2 . Wizard 1 | . . . . . . . . . . . 1 . Fireman 2 | . . . . . . . . . . . 2 . Mutant 5 | . . . . . . . . . . . 5 . Best Kill Streak 13 | 4 2 3 3 3 . 6 10 . 7 2 13 . Combat Bots Only 7 | . 2 3 2 3 . 3 6 . 7 2 3 . Max Kills in Single Turn 5 | 1 1 1 1 1 . 3 4 . 5 1 3 . Gunslinging . | . . . . . . . . . . . . . Exploded 4 | . . . . . . 1 3 . 4 1 2 . Melee . | . . . . . . . . . . . . . Uniques/NPCs Destroyed 1 | . . . . . . . . . . . 1 . Imprinter (-7/Zion) Combat | -11 -10 -10 -9 -9 -9 -8 -8 -7 -7 -7 -7 -6 -------- Run | Scr Mat Min Mat Min Exi Min Mat Fac Low Low Zio Pro Damage Taken 5416 | . 253 138 148 155 . 308 432 . 313 365 3189 115 Core 1149 | . 79 57 53 72 . 79 99 . . 101 551 58 Absorbed by Shields . | . . . . . . . . . . . . . Core Remaining (%) 69 | 100 . 45 . . . 49 82 . . . . . Volleys Fired 219 | 9 16 12 21 7 . 16 16 . 9 9 104 . Largest 2 | 2 2 2 2 2 . 2 1 . 1 1 2 . Hottest 250 | 40 85 85 121 130 . 250 250 . 250 250 250 . Shots Fired 348 | 18 31 24 42 15 . 17 16 . 9 9 167 . Gun 208 | 18 31 24 42 15 . 10 . . . . 68 . Cannon 107 | . . . . . . 7 16 . 9 9 66 . Launcher 13 | . . . . . . . . . . . 13 . Special 20 | . . . . . . . . . . . 20 . Kinetic 164 | 18 29 12 . . . . . . . . 105 . Thermal 144 | . 2 12 42 15 . 17 16 . 9 9 22 . Explosive 33 | . . . . . . . . . . . 33 . Electromagnetic 7 | . . . . . . . . . . . 7 . Robot Hit Streak 14 | 12 7 6 6 2 . 14 8 . 8 3 12 . Robot Miss Streak 10 | 1 3 1 3 3 . 1 3 . 7 4 10 . Penetration Max . | . . . . . . . . . . . . . Secondary Targets 2 | . . . . . . . . . . . 2 . Max Gunslinging Chain 1 | . . . . . . . . . . . 1 . Shots Hit Robots 256 | 14 18 15 24 7 . 15 14 . 8 9 132 . Core Hits 232 | 7 7 9 13 5 . 18 42 . 21 11 99 . Critical Kills . | . . . . . . . . . . . . . Critical Parts Destroyed . | . . . . . . . . . . . . . Critical Strikes 8 | . 1 . 3 . . 1 . . . . 3 . Burn 5 | . 1 . 3 . . 1 . . . . . . Blast 1 | . . . . . . . . . . . 1 . Sever 2 | . . . . . . . . . . . 2 . Melee Attacks 3 | . . . . . . . . . . . 3 . Impact . | . . . . . . . . . . . . . Slashing . | . . . . . . . . . . . . . Piercing 3 | . . . . . . . . . . . 3 . Sneak Attacks . | . . . . . . . . . . . . . Combat Hostiles . | . . . . . . . . . . . . . Follow-up Attacks . | . . . . . . . . . . . . . Damage Inflicted 10306 | 148 189 176 378 143 . 714 1482 . 685 316 6075 . Guns 1908 | 148 189 176 378 143 . 167 . . . . 707 . Cannons 1772 | . . . . . . 85 389 . 158 98 1042 . Explosions 5860 | . . . . . . 462 1093 . 527 218 3560 . Melee 92 | . . . . . . . . . . . 92 . Ramming . | . . . . . . . . . . . . . Kinetic 1691 | 148 156 52 . . . . . . . . 1335 . Thermal 4446 | . 33 124 378 143 . 714 1436 . 685 316 617 . Explosive 3249 | . . . . . . . 46 . . . 3203 . Electromagnetic 154 | . . . . . . . . . . . 154 . Impact . | . . . . . . . . . . . . . Slashing 674 | . . . . . . . . . . . 674 . Piercing 92 | . . . . . . . . . . . 92 . Highest Corruption 29 | . . . . 2 2 2 . . . . 29 29 Average Corruption 6 | . . . . 2 2 2 . . . . 8 29 Corruption Purged . | . . . . . . . . . . . . . Corruption Blocked . | . . . . . . . . . . . . . Effects 56 | . . . . 9 4 7 . . . . 29 7 Message Errors 13 | . . . . 1 2 2 . . . . 6 2 Matter Fused 15 | . . . . 4 . 3 . . . . 7 1 Heat Flow Errors 8 | . . . . 1 . . . . . . 5 2 Energy Discharges 7 | . . . . 1 1 1 . . . . 4 . Parts Rejected 1 | . . . . . . . . . . . . 1 Data Loss (minor) 5 | . . . . 1 1 . . . . . 3 . Data Loss (major) 4 | . . . . . . . . . . . 3 1 Misfires 2 | . . . . 1 . . . . . . 1 . Alerts 1 | . . . . . . 1 . . . . . . Overload Shots . | . . . . . . . . . . . . . Overflow Damage 296 | . . . . . . 2 12 . 15 18 249 . Projectiles 67 | . . . . . . . . . . . 67 . Explosions 227 | . . . . . . 2 12 . 15 18 180 . Melee 2 | . . . . . . . . . . . 2 . Knockbacks 8 | . . . . . . . . . . . 8 . Impact . | . . . . . . . . . . . . . Kinetic 8 | . . . . . . . . . . . 8 . Secondary . | . . . . . . . . . . . . . Self-Inflicted Damage 551 | . . . . . . 62 138 . 120 135 96 . Shots 43 | . . . . . . 6 14 . 7 12 4 . Rammed . | . . . . . . . . . . . . . Targets Rammed . | . . . . . . . . . . . . . Kicked . | . . . . . . . . . . . . . Crushed . | . . . . . . . . . . . . . Highest Temperature 852 | . 74 190 120 223 . 581 444 . 487 612 852 204 Average Temperature 185 | . 19 71 39 58 . 212 152 . 169 248 265 101 Received Heat Transfer 1043 | . 165 75 93 67 . 81 126 . 48 30 307 51 Effects 61 | . . . . . . 7 2 . 2 15 35 . Shutdowns 26 | . . . . . . 1 . . 1 7 17 . Energy Bleed 8 | . . . . . . . . . . 3 5 . Interference 7 | . . . . . . . 2 . . 1 4 . Matter Decay 2 | . . . . . . . . . . 1 1 . Short Circuit 6 | . . . . . . 1 . . 1 . 4 . Damage (minor) 4 | . . . . . . 1 . . . 2 1 . Damage (major) 6 | . . . . . . 4 . . . . 2 . Damage (core) 2 | . . . . . . . . . . 1 1 . Siege Activations . | . . . . . . . . . . . . . Robots Corrupted 1 | . . . . . . . . . . . 1 . Combat Hostiles . | . . . . . . . . . . . . . Parts Fried 2 | . . . . . . . . . . . 2 . Impact Corruptions . | . . . . . . . . . . . . . Robots Melted 15 | . . . . . . 4 5 . 3 . 3 . Combat Hostiles 13 | . . . . . . 4 4 . 3 . 2 . Parts Melted 68 | . . 1 1 . . 18 25 . 6 6 11 . Heat Transferred 21398 | . 148 296 1147 333 . 3694 7730 . 3360 1520 3170 . Parts Sabotaged . | . . . . . . . . . . . . . Parts Stolen . | . . . . . . . . . . . . . Parts Stripped . | . . . . . . . . . . . . . Power Chain Reactions . | . . . . . . . . . . . . . Missiles Intercepted . | . . . . . . . . . . . . . Alert | -11 -10 -10 -9 -9 -9 -8 -8 -7 -7 -7 -7 -6 ------- Run | Scr Mat Min Mat Min Exi Min Mat Fac Low Low Zio Pro Peak Influence 669 | 20 98 188 116 130 . 153 669 280 . . . . Initial 275 | . 13 37 72 34 . . 42 275 . . . . Average 127 | 7 50 99 68 78 . 66 358 276 . . . . Maximum Alert Level 2 | . . . . . . . 2 1 . . . . Low Security (%) 84 | 100 100 100 100 100 . 100 31 . . . . . Level 1 6 | . . . . . . . 16 100 . . . . Level 2 9 | . . . . . . . 52 . . . . . Level 3 . | . . . . . . . . . . . . . Level 4 . | . . . . . . . . . . . . . Level 5 . | . . . . . . . . . . . . . High Security . | . . . . . . . . . . . . . Max Security . | . . . . . . . . . . . . . Squads Dispatched 2 | . . . . . . . 1 1 . . . . Investigation 2 | . . . . . . . 1 1 . . . . Extermination . | . . . . . . . . . . . . . Reinforcement . | . . . . . . . . . . . . . Assault . | . . . . . . . . . . . . . Garrison . | . . . . . . . . . . . . . Intercept . | . . . . . . . . . . . . . Searches Triggered . | . . . . . . . . . . . . . Construction Impeded . | . . . . . . . . . . . . . Haulers Reinforced . | . . . . . . . . . . . . . Active Scanning Responses . | . . . . . . . . . . . . . Cargo Convoy Interrupts . | . . . . . . . . . . . . . Stealth | -11 -10 -10 -9 -9 -9 -8 -8 -7 -7 -7 -7 -6 --------- Run | Scr Mat Min Mat Min Exi Min Mat Fac Low Low Zio Pro Distress Signals . | . . . . . . . . . . . . . Communications Jammed . | . . . . . . . . . . . . . Distress Signals . | . . . . . . . . . . . . . Times Spotted 153 | . 4 8 9 5 . 10 22 . 14 5 69 7 Peak Tracking Total 6 | . 3 3 2 3 . 4 6 . 5 1 5 4 Tactical Retreats 9 | . 1 1 . 1 . . 2 . . . 3 1 Traps | -11 -10 -10 -9 -9 -9 -8 -8 -7 -7 -7 -7 -6 ------- Run | Scr Mat Min Mat Min Exi Min Mat Fac Low Low Zio Pro Traps Triggered . | . . . . . . . . . . . . . Indirectly . | . . . . . . . . . . . . . Trap Hack Attempts . | . . . . . . . . . . . . . Triggered . | . . . . . . . . . . . . . Disarmed . | . . . . . . . . . . . . . Reprogrammed . | . . . . . . . . . . . . . Reused . | . . . . . . . . . . . . . Traps Extracted . | . . . . . . . . . . . . . Installed . | . . . . . . . . . . . . . Triggered . | . . . . . . . . . . . . . Machines | -11 -10 -10 -9 -9 -9 -8 -8 -7 -7 -7 -7 -6 ---------- Run | Scr Mat Min Mat Min Exi Min Mat Fac Low Low Zio Pro Machines Disabled 9 | . . . 1 . . 2 5 . . . 1 . Max in Single Turn 1 | . . . 1 . . 1 1 . . . 1 . Machines Sabotaged . | . . . . . . . . . . . . . Garrisons Compromised . | . . . . . . . . . . . . . Overloaded Fab Kills . | . . . . . . . . . . . . . Hacking | -11 -10 -10 -9 -9 -9 -8 -8 -7 -7 -7 -7 -6 --------- Run | Scr Mat Min Mat Min Exi Min Mat Fac Low Low Zio Pro Machines Accessed 15 | . 1 . 5 1 4 . 2 2 . . . . Terminals 9 | . 1 . 4 1 . . 1 2 . . . . Fabricators . | . . . . . . . . . . . . . Repair Stations . | . . . . . . . . . . . . . Recycling Units . | . . . . . . . . . . . . . Scanalyzers 2 | . . . 1 . . . 1 . . . . . Garrison Access . | . . . . . . . . . . . . . Total Hacks 34 | . 2 . 12 6 4 . 7 3 . . . . Successful 21 | . . . 7 3 4 . 6 1 . . . . Failed 13 | . 2 . 5 3 . . 1 2 . . . . Catastrophic 1 | . . . . . . . 1 . . . . . Database Lockouts . | . . . . . . . . . . . . . Manual 13 | . . . 4 8 1 . . . . . . . Terminals 23 | . 2 . 10 6 . . 2 3 . . . . Fabricators . | . . . . . . . . . . . . . Repair Stations . | . . . . . . . . . . . . . Recycling Units . | . . . . . . . . . . . . . Scanalyzers 7 | . . . 2 . . . 5 . . . . . Garrison Access . | . . . . . . . . . . . . . Terminal Hacks 14 | . . . 5 3 4 . 1 1 . . . . Record 3 | . . . . . 3 . . . . . . . Robot Analysis 5 | . . . 2 3 . . . . . . . . Prototype ID Bank 1 | . . . 1 . . . . . . . . . Open DSF 1 | . . . . . . . . 1 . . . . Emergency Access Points 1 | . . . . . . . 1 . . . . . Unreport Threat 1 | . . . 1 . . . . . . . . . Locate Traps 1 | . . . 1 . . . . . . . . . EX-Prototype ID Bank 1 | . . . . . 1 . . . . . . . Fabricator Hacks . | . . . . . . . . . . . . . Repair Station Hacks . | . . . . . . . . . . . . . Recycling Unit Hacks . | . . . . . . . . . . . . . Scanalyzer 7 | . . . 2 . . . 5 . . . . . Insert Component 3 | . . . 1 . . . 2 . . . . . Analyze 4 | . . . 1 . . . 3 . . . . . Garrison Access Hacks . | . . . . . . . . . . . . . Unauthorized Hacks . | . . . . . . . . . . . . . Terminals . | . . . . . . . . . . . . . Fabricators . | . . . . . . . . . . . . . Repair Stations . | . . . . . . . . . . . . . Recycling Units . | . . . . . . . . . . . . . Scanalyzers . | . . . . . . . . . . . . . Garrison Access . | . . . . . . . . . . . . . Data Cores Recovered . | . . . . . . . . . . . . . Used . | . . . . . . . . . . . . . Hacking Detections 10 | . 1 . 5 1 . . 2 1 . . . . Full Trace Events 3 | . . . 1 . . . 1 1 . . . . Feedback Events . | . . . . . . . . . . . . . Feedback Blocked . | . . . . . . . . . . . . . Robot Schematics Acquired 3 | . . . . . . . . . . . 3 . Robots Built . | . . . . . . . . . . . . . Authchips . | . . . . . . . . . . . . . Time . | . . . . . . . . . . . . . Total Robot Build Rating . | . . . . . . . . . . . . . Part Schematics Acquired 17 | . . . 1 . . . 2 . . . 14 . Parts Built . | . . . . . . . . . . . . . Authchips . | . . . . . . . . . . . . . Time . | . . . . . . . . . . . . . Total Part Build Rating . | . . . . . . . . . . . . . Parts Repaired . | . . . . . . . . . . . . . Time . | . . . . . . . . . . . . . Parts Recycled . | . . . . . . . . . . . . . Recycled Matter . | . . . . . . . . . . . . . Retrieved Matter . | . . . . . . . . . . . . . Retrieved Components . | . . . . . . . . . . . . . Parts Scanalyzed 3 | . . . 1 . . . 2 . . . . . Part Schematics Acquired 3 | . . . 1 . . . 2 . . . . . Parts Damaged . | . . . . . . . . . . . . . Bothacking | -11 -10 -10 -9 -9 -9 -8 -8 -7 -7 -7 -7 -6 ------------ Run | Scr Mat Min Mat Min Exi Min Mat Fac Low Low Zio Pro Used RIF Installer . | . . . . . . . . . . . . . Robots Hacked . | . . . . . . . . . . . . . Non-combat . | . . . . . . . . . . . . . Combat . | . . . . . . . . . . . . . Robot Hacks Applied . | . . . . . . . . . . . . . Relay Couplers Released . | . . . . . . . . . . . . . Fabnet Peak Effective % . | . . . . . . . . . . . . . Robots Rewired . | . . . . . . . . . . . . . Allies Hacked . | . . . . . . . . . . . . . Hacks Repelled . | . . . . . . . . . . . . . Allies | -11 -10 -10 -9 -9 -9 -8 -8 -7 -7 -7 -7 -6 -------- Run | Scr Mat Min Mat Min Exi Min Mat Fac Low Low Zio Pro Total Allies 3 | . . 2 . 1 . . . . . . . . Largest Group 2 | . . 2 . 1 1 . . . . . . . Highest-Rated Group 38 | . . 38 . 31 31 . . . . . . . Highest-Rated Ally 31 | . . 31 . 31 31 . . . . . . . Total Orders . | . . . . . . . . . . . . . Ally Attacks 16 | . . 10 . 6 . . . . . . . . Total Damage 251 | . . 168 . 83 . . . . . . . . Kills 4 | . . 2 . 2 . . . . . . . . Allies Corrupted . | . . . . . . . . . . . . . Allies Melted . | . . . . . . . . . . . . . Intel | -11 -10 -10 -9 -9 -9 -8 -8 -7 -7 -7 -7 -6 ------- Run | Scr Mat Min Mat Min Exi Min Mat Fac Low Low Zio Pro Robot Analysis Total 5 | . . . 2 3 . . . . . . . . Derelict Logs Recovered 6 | . . . . 2 . . . . 1 . 3 . Drone Launches . | . . . . . . . . . . . . . Drone Recoveries . | . . . . . . . . . . . . . Exploration | -11 -10 -10 -9 -9 -9 -8 -8 -7 -7 -7 -7 -6 ------------- Run | Scr Mat Min Mat Min Exi Min Mat Fac Low Low Zio Pro Turns Passed 7380 | 145 189 277 512 587 389 675 528 126 932 577 2291 152 Spaces Moved 4780 | 97 116 144 352 541 387 517 288 86 445 369 1328 110 Core 19 | 10 . . . . . . . . . . . 9 Treads 1852 | . . . . . . . 96 86 445 369 856 . Legs 573 | . . . . . . . . . . . 472 101 Wheels 2336 | 87 116 144 352 541 387 517 192 . . . . . Hover . | . . . . . . . . . . . . . Flight . | . . . . . . . . . . . . . Fastest Speed 50 | 50 100 100 100 100 100 80 95 145 145 145 130 50 Average Speed 127 | 94 100 100 100 100 100 104 112 145 201 145 142 134 Slowest Speed 300 | 100 100 100 100 100 100 110 145 145 225 145 225 300 Overloaded Moves . | . . . . . . . . . . . . . Propulsion Burnouts . | . . . . . . . . . . . . . Robots Hopped . | . . . . . . . . . . . . . Cave-ins Triggered . | . . . . . . . . . . . . . Exploration Rate (%) 45 | 6 32 31 29 97 72 77 25 2 59 58 83 23 Regions Visited 12 Branch Regions 8 Pre-discovered Areas 1 | . . . . . . . . . . . 1 . Known Exits Taken 9 | . . . 1 1 1 1 1 1 1 1 1 . Unknown Exits Taken 3 | 1 1 1 . . . . . . . . . . Scrap Searched 17 | . . 1 . 1 . 1 . . 9 3 2 . Spaces Dug 7 | . . . . . . . 7 . . . . . Terrain Destroyed 221 | . . . . . . 54 136 . 3 . 28 . Melee . | . . . . . . . . . . . . . Projectile 9 | . . . . . . 4 4 . 1 . . . AOE 212 | . . . . . . 50 132 . 2 . 28 . Terrain Rammed . | . . . . . . . . . . . . . Walls Destroyed . | . . . . . . . . . . . . . Machines Disabled . | . . . . . . . . . . . . . Actions | -11 -10 -10 -9 -9 -9 -8 -8 -7 -7 -7 -7 -6 --------- Run | Scr Mat Min Mat Min Exi Min Mat Fac Low Low Zio Pro Total 5733 | 135 167 258 470 573 389 633 477 87 475 403 1551 115 Wait 492 | . 23 95 82 23 . 84 137 . 3 11 34 . Move 4768 | 96 115 143 351 540 386 516 287 85 444 368 1327 110 Hop . | . . . . . . . . . . . . . Pick Up 107 | 19 6 4 7 2 1 4 18 . 9 5 32 . Fast Attach . | . . . . . . . . . . . . . Attach 64 | 7 1 . 3 1 . 7 6 2 1 3 32 1 Detach 9 | . . . . . . 3 . . . . 2 4 Swap 26 | . 1 . 3 . . 2 4 . 3 2 11 . Drop 45 | 4 5 4 3 . 2 1 9 . 6 5 6 . Fire 219 | 9 16 12 21 7 . 16 16 . 9 9 104 . Melee 3 | . . . . . . . . . . . 3 . Ram . | . . . . . . . . . . . . . Kick . | . . . . . . . . . . . . . Crush . | . . . . . . . . . . . . . Escape Stasis . | . . . . . . . . . . . . . Rewire . | . . . . . . . . . . . . . Trap . | . . . . . . . . . . . . . Miscellaneous . | . . . . . . . . . . . . . Route ------- -11/Scrapyard -10/Materials -10/Mines -9/Materials -9/Mines (discovered 4 exits: *Mat x2 / *Exi / *Zio) -9/Exiles (discovered 2 exits: *Min x2) -8/Mines -8/Materials (discovered 3 exits: *Fac x3) -7/Factory (discovered 2 exits: *Low / DSF) -7/Lower Caves -7/Lower Caves (discovered 2 exits: *Fac / *Zio) -7/Zion (discovered 2 exits: Dee / *Pro) -6/Proximity Caves History --------- Turn | Location | Event 31 | -11/Scrapyard | Discovered new exit (range 16) 146 | -11/Scrapyard | Entered Materials 301 | -10/Materials | Build established: Mutant 324 | -10/Materials | Discovered new exit (range 12) 335 | -10/Materials | Entered Mines 444 | -10/Mines | Core integrity fell below 50% 598 | -10/Mines | Discovered new exit (range 9) 612 | -10/Mines | Entered Materials 612 | -9/Materials | Evolved 2 slots: Utility x2 966 | -9/Materials | Build established: Scavenger-Mutant 1088 | -9/Materials | Discovered new exit (range 13) 1102 | -9/Materials | Identified exit to Mines 1124 | -9/Materials | Entered Mines 1139 | -9/Mines | Escorted by a lone wolf Derelict 1146 | -9/Mines | Discovered new exit (range 8) 1151 | -9/Mines | Identified exit to Materials 1160 | -9/Mines | Learned location of 1 exit from Materials 1222 | -9/Mines | Excavation squad dispatched 1222 | -9/Mines | A large section of the Mines collapsed 1332 | -9/Mines | Discovered exit to Materials (range 3) 1479 | -9/Mines | A Derelict revealed a hidden shortcut to a safe place 1495 | -9/Mines | Identified exit to Zion 1702 | -9/Mines | Deemed a non-threat by the Exiles lab entrance 1702 | -9/Mines | Discovered new exit (range 5) 1705 | -9/Mines | Identified exit to Exiles 1711 | -9/Mines | Entered Exiles 1711 | -9/Exiles | Accompanied by 1 ally 1726 | -9/Exiles | Discovered new exit (range 14) 1738 | -9/Exiles | Identified exit to Mines 1756 | -9/Exiles | Met 8R-AWN 1773 | -9/Exiles | Met EX-HEX 1811 | -9/Exiles | Met EX-DEC 1862 | -9/Exiles | Discovered exit to Mines (range 12) 1928 | -9/Exiles | Met EX-BIN 1943 | -9/Exiles | Aligned with FarCom system 1944 | -9/Exiles | Given EX-Vault access code 1990 | -9/Exiles | Opened EX-Vault 1998 | -9/Exiles | Found Firepult 2021 | -9/Exiles | Warned to stay clear of 0b10 Research branches 2100 | -9/Exiles | Left Exiles lab with Firepult 2100 | -9/Exiles | Entered Mines 2169 | -8/Mines | Lost 4 parts (2n1u1w) 2574 | -8/Mines | Core integrity fell below 50% 2772 | -8/Mines | Discovered exit to Materials (range 3) 2775 | -8/Mines | Entered Materials 2775 | -8/Materials | Evolved 2 slots: Propulsion x1, Utility x1 2776 | -8/Materials | Identified exit to Factory 3059 | -8/Materials | Lost 3 parts (1p2n) 3282 | -8/Materials | Discovered exit to Factory (range 14) 3303 | -8/Materials | Entered Factory 3303 | -7/Factory | Evolved 2 slots: Power x2 3344 | -7/Factory | Build established: Mutant 3345 | -7/Factory | Discovered new exit (range 15) 3365 | -7/Factory | Identified exit to Lower Caves 3397 | -7/Factory | Identified exit to DSF 3429 | -7/Factory | Entered Lower Caves 3433 | -7/Lower Caves | Attracted the attention of an 0b10 checkpoint 3471 | -7/Lower Caves | Destroyed 7 combat bots 3782 | -7/Lower Caves | Learned Factory security intel 4020 | -7/Lower Caves | Spotted B-75 Beast 4202 | -7/Lower Caves | Discovered new exit (range 14) 4229 | -7/Lower Caves | Identified exit to Lower Caves 4361 | -7/Lower Caves | Entered another Lower Caves area 4416 | -7/Lower Caves | Discovered new exit (range 15) 4436 | -7/Lower Caves | Identified exit to Factory 4861 | -7/Lower Caves | Attracted the attention of an 0b10 checkpoint 4917 | -7/Lower Caves | Discovered exit to Zion (range 15) 4938 | -7/Lower Caves | Entered Zion 5012 | -7/Zion | Found Prototype Special Weapon 5014 | -7/Zion | Identified RU-N14's Throwing Claymores 5018 | -7/Zion | Found RU-N14's Throwing Claymores 5030 | -7/Zion | Discovered new exit (range 15) 5054 | -7/Zion | Identified exit to Proximity Caves 5305 | -7/Zion | Identified exit to Deep Caves 5344 | -7/Zion | Learned location of 1 exit from Lower Caves 5348 | -7/Zion | Found Prototype Device 5349 | -7/Zion | Identified Mobile Refinery Mk. CCLXVII 5515 | -7/Zion | Learned Factory garrison access intel 5603 | -7/Zion | Rebuked by Imprinter 5719 | -7/Zion | Learned Factory interactive machine intel 5744 | -7/Zion | Learned location of Recycling (-7) 5839 | -7/Zion | Attacked by Zionites 6039 | -7/Zion | Destroyed Imprinter 6062 | -7/Zion | Lost 5 parts (1p1n2u1w) 6420 | -7/Zion | Lost 3 parts (1p1n1w) 6448 | -7/Zion | Core integrity fell below 50% 6662 | -7/Zion | Build established: Scavenger-Mutant 7040 | -7/Zion | Spotted DW-AZR(B) 7045 | -7/Zion | Spotted WP-ZRU(B) 7071 | -7/Zion | Core integrity fell below 20% 7090 | -7/Zion | System corruption reached 10% 7134 | -7/Zion | Lost 15 parts (4p5n3u3w) 7191 | -7/Zion | Found RU-N14's Throwing Claymores 7193 | -7/Zion | Found RU-N14's Throwing Claymores 7229 | -7/Zion | Entered Proximity Caves 7381 | -6/Proximity Caves | Destroyed by G-67 Veteran with Field Laser Last Messages --------------- 07174_ Component Analysis Suite fried. 07174_ Recalibrator fried. 07177_ Acquired 23 matter. 07179_ The unstable cave ceiling collapses. 07185_ System corrupted: Substantial component data lost. 07186_ The unstable cave ceiling collapses. 07191_ Acquired RU-N14's Throwing Claymores. 07200_ LTEYNYR85TW/WJ4KLD<6 EQPHTPWJNLB1XJ 07219_ System corrupted: Component data lost. LOCATION=PROXIMITY CAVES GOAL=ESCAPE 07236_ System corrupted: Heat flow error (+202). 07278_ System corrupted: Heat flow error (+228). 07309_ System corrupted: Substantial component data lost. 07330_ System corrupted: Matter fused (-10). 07346_ System corrupted: Mak. Leg rejected. 07361_ CM4/2TV5MC#8J4H &:GNFCPHFPC